Workbook

Sheet BLS Roste (hidden)
B2: Berechnungshilfe Lüftungsquerschnitte ACO Betonlichtschacht | G2: Datum:2024-01-17 | H2: Release:V1.5
B4: Disclaimer:
B5: Die Berechnungshilfe „Lüftungsquerschnitte“ basiert auf dem aktuellen Stand der Wissenschaft und Technik. Die Nutzung befreit nicht von Planungs- und Sorgfaltspflichten, sondern setzt vielmehr angemessene, branchenübliche Sach- und Fachkunde voraus. Insbesondere sind objektbezogene Empfehlungen, technische Zeichnungen und Berechnungen weiterhin selbst zu verantworten sowie alle bauaufsichtlichen Voraussetzungen unter Berücksichtigung aller örtlichen Gegebenheiten, der technischen Regelwerke und des aktuellen Standes der Technik weiterhin selbst zu prüfen. Diese Aufzählung von Sorgfaltspflichten ist nicht abschließend. Die Berechnungshilfe ersetzt auch nicht die Prüfung durch Sonderfachleute. Es gelten die ACO GmbH- AGB https://www.aco.de/unternehmen/agb, unter besonderem Verweis auf § 10.
C7: Für Lichtschacht | E7: Abmessungen
B8: Artikel-Nr. | C8: Lichte Tiefe | D8: Lichte Breite | E8: Tiefe | F8: Breite | G8: Rost | H8: Lüftung
C9: [mm] | D9: [mm] | E9: [mm] | F9: [mm] | H9: [m²] | O9: Maschenrost 1020, MW 33x33, LKW 30 | Q9: Tiefe | R9: Breite
B10: 377221 | C10: 500 | D10: 820 | E10: 520 | F10: 900 | G10: 30/30, begehbar | H10: 0.353 | O10: Maschenrost 1020x500 H50, MW 33x33, LKW 30 | P10: 380960 | Q10: 600 | R10: 1230 | S10: 443,047.28 | T10: =S10/1000000 -> 0.44304728
B11: 377222 | C11: 600 | D11: 820 | E11: 620 | F11: 900 | G11: 30/30, begehbar | H11: 0.428 | J11: Bitte hier gewünschte Artikelnummer einkopieren: | O11: Maschenrost 1020x600 H60, MW 33x33, LKW 30 | P11: 380961 | Q11: 700 | R11: 1230 | S11: 546248.33 | T11: =S11/1000000 -> 0.54624833
B12: 377223 | C12: 500 | D12: 1020 | E12: 520 | F12: 1100 | G12: 30/30, begehbar | H12: 0.44 | O12: Maschenrost 1020x800 H80, MW 33x33, LKW 30 | P12: 380962 | Q12: 900 | R12: 1230 | S12: 717302.04 | T12: =S12/1000000 -> 0.71730204
B13: 377224 | C13: 600 | D13: 1020 | E13: 620 | F13: 1100 | G13: 30/30, begehbar | H13: 0.533 | J13: Artikel-Nr. | K13: 385036 | O13: Maschenrost 1020x1000 H100, MW 33x33, LKW 30 | P13: 385444 | Q13: 1100 | R13: 1230 | S13: 888355.45 | T13: =S13/1000000 -> 0.88835545
B14: 377225 | C14: 800 | D14: 1020 | E14: 820 | F14: 1100 | G14: 30/30, begehbar | H14: 0.706 | J14: Lichtschacht
B15: 377226 | C15: 1000 | D15: 1020 | E15: 1020 | F15: 1100 | G15: 30/30, begehbar | H15: 0.894 | J15: Lichte Tiefe | K15: =VLOOKUP($K$13,B:H,2,0) -> 800 | O15: Maschenrost 1270, MW 33x33, LKW 30
B16: 377227 | C16: 500 | D16: 1270 | E16: 520 | F16: 1350 | G16: 30/30, begehbar | H16: 0.549 | J16: Lichte Breite | K16: =VLOOKUP($K$13,B:H,3,0) -> 2520 | O16: Maschenrost 1270x500 H50, MW 33x33, LKW 30 | P16: 380902 | Q16: 600 | R16: 1480 | S16: 489618.43 | T16: =S16/1000000 -> 0.48961843
B17: 377228 | C17: 600 | D17: 1270 | E17: 620 | F17: 1350 | G17: 30/30, begehbar | H17: 0.664 | J17: Rost | K17: =VLOOKUP($K$13,B:H,6,0) -> 33/33, SLW 30, ohne HifüPla | O17: Maschenrost 1270x600 H60, MW 33x33, LKW 30 | P17: 380903 | Q17: 700 | R17: 1480 | S17: 587973.88 | T17: =S17/1000000 -> 0.58797388
B18: 377229 | C18: 800 | D18: 1270 | E18: 820 | F18: 1350 | G18: 30/30, begehbar | H18: 0.879 | J18: Tiefe | K18: =VLOOKUP($K$13,B:H,4,0) -> 900 | O18: Maschenrost 1270x800 H80, MW 33x33, LKW 30 | P18: 380904 | Q18: 900 | R18: 1480 | S18: 785143.18 | T18: =S18/1000000 -> 0.78514318
B19: 377230 | C19: 1000 | D19: 1270 | E19: 1020 | F19: 1350 | G19: 30/30, begehbar | H19: 1.112 | J19: Breite | K19: =VLOOKUP($K$13,B:H,5,0) -> 1363 | O19: Maschenrost 1270x1000 H100, MW 33x33, LKW 30 | P19: 385448 | Q19: 1100 | R19: 1480 | S19: 982965.36 | T19: =S19/1000000 -> 0.98296536
B20: 377231 | C20: 500 | D20: 1520 | E20: 520 | F20: 1600 | G20: 30/30, begehbar | H20: 0.651
B21: 377232 | C21: 600 | D21: 1520 | E21: 620 | F21: 1600 | G21: 30/30, begehbar | H21: 0.788 | O21: Maschenrost 1520, MW 33x33, LKW 30
B22: 377233 | C22: 800 | D22: 1520 | E22: 820 | F22: 1600 | G22: 30/30, begehbar | H22: 1.043 | J22: Lüftungsquerschnitt: | K22: =VLOOKUP($K$13,B:H,7,0) -> 1.647 | O22: Maschenrost 1520x500 H50, MW 33x33, LKW 30 | P22: 380905 | Q22: 600 | R22: 865 | S22: 587947.5 | T22: =S22/1000000 -> 0.5879475
B23: 377234 | C23: 1000 | D23: 1520 | E23: 1020 | F23: 1600 | G23: 30/30, begehbar | H23: 1.319 | O23: Maschenrost 1520x600 H60, MW 33x33, LKW 30 | P23: 380906 | Q23: 700 | R23: 865 | S23: 706042 | T23: =S23/1000000 -> 0.706042
B24: 385359 | C24: 500 | D24: 1800 | E24: 520 | F24: 1880 | G24: 30/30, begehbar | H24: 0.78 | O24: Maschenrost 1520x800 H80, MW 33x33, LKW 30 | P24: 380907 | Q24: 900 | R24: 865 | S24: 942911.84 | T24: =S24/1000000 -> 0.94291184
B25: 385360 | C25: 600 | D25: 1800 | E25: 620 | F25: 1880 | G25: 30/30, begehbar | H25: 0.94 | O25: Maschenrost 1520x1000 H100, MW 33x33, LKW 30 | P25: 385452 | Q25: 1100 | R25: 865 | S25: 1180306.4 | T25: =S25/1000000 -> 1.1803064
B26: 385361 | C26: 800 | D26: 1800 | E26: 820 | F26: 1880 | G26: 30/30, begehbar | H26: 1.27
B27: 385362 | C27: 1000 | D27: 1800 | E27: 1020 | F27: 1880 | G27: 30/30, begehbar | H27: 1.59 | O27: Maschenrost 1800, MW 33x33, LKW 30
B28: 377235 | C28: 500 | D28: 2050 | E28: 520 | F28: 2130 | G28: 30/30, begehbar | H28: 0.882 | O28: Maschenrost 1800x500 H50, MW 33x33, LKW 30 | P28: 385434 | Q28: 600 | R28: 1003 | S28: 673268.72 | T28: =S28/1000000 -> 0.67326872
B29: 377236 | C29: 600 | D29: 2050 | E29: 620 | F29: 2130 | G29: 30/30, begehbar | H29: 1.067 | O29: Maschenrost 1800x600 H60, MW 33x33, LKW 30 | P29: 385435 | Q29: 700 | R29: 1003 | S29: 812667.48 | T29: =S29/1000000 -> 0.81266748
B30: 377237 | C30: 800 | D30: 2050 | E30: 820 | F30: 2130 | G30: 30/30, begehbar | H30: 1.412 | O30: Maschenrost 1800x800 H80, MW 33x33, LKW 30 | P30: 385436 | Q30: 900 | R30: 1003 | S30: 1091602.82 | T30: =S30/1000000 -> 1.09160282
B31: 377238 | C31: 1000 | D31: 2050 | E31: 1020 | F31: 2130 | G31: 30/30, begehbar | H31: 1.784 | O31: Maschenrost 1800x1000 H100, MW 33x33, LKW 30 | P31: 385437 | Q31: 1100 | R31: 1003 | S31: 1370414.04 | T31: =S31/1000000 -> 1.37041404
B32: 377239 | C32: 600 | D32: 2520 | E32: 620 | F32: 2600 | G32: 30/30, begehbar | H32: 1.315
B33: 377240 | C33: 800 | D33: 2520 | E33: 820 | F33: 2600 | G33: 30/30, begehbar | H33: 1.739 | O33: Maschenrost 2050, MW 33x33, LKW 30
B34: 377241 | C34: 1000 | D34: 2520 | E34: 1020 | F34: 2600 | G34: 30/30, begehbar | H34: 2.197 | O34: Maschenrost 2050x500 H50, MW 33x33, LKW 30 | P34: 380908 | Q34: 600 | R34: 1128 | S34: 751301.02 | T34: =S34/1000000 -> 0.75130102
B35: 377242 | C35: 500 | D35: 820 | E35: 520 | F35: 900 | G35: 30/10, begehbar | H35: 0.322 | O35: Maschenrost 2050x600 H60, MW 33x33, LKW 30 | P35: 380909 | Q35: 700 | R35: 1128 | S35: 906635.9 | T35: =S35/1000000 -> 0.9066359
B36: 377243 | C36: 600 | D36: 820 | E36: 620 | F36: 900 | G36: 30/10, begehbar | H36: 0.39 | O36: Maschenrost 2050x800 H80, MW 33x33, LKW 30 | P36: 380910 | Q36: 900 | R36: 1128 | S36: 1217733.02 | T36: =S36/1000000 -> 1.21773302
B37: 377244 | C37: 500 | D37: 1020 | E37: 520 | F37: 1100 | G37: 30/10, begehbar | H37: 0.401 | O37: Maschenrost 2050x1000 H100, MW 33x33, LKW 30 | P37: 385456 | Q37: 1100 | R37: 1128 | S37: 1529499.44 | T37: =S37/1000000 -> 1.52949944
B38: 377245 | C38: 600 | D38: 1020 | E38: 620 | F38: 1100 | G38: 30/10, begehbar | H38: 0.485
B39: 377246 | C39: 800 | D39: 1020 | E39: 820 | F39: 1100 | G39: 30/10, begehbar | H39: 0.644 | O39: Maschenrost 2520, MW 33x33, LKW 30
B40: 377247 | C40: 1000 | D40: 1020 | E40: 1020 | F40: 1100 | G40: 30/10, begehbar | H40: 0.814 | O40: Maschenrost 2520x600 H60, MW 33x33, LKW 30 | P40: 385035 | Q40: 700 | R40: 1363 | S40: 1,255,349.52 | T40: =S40/1000000 -> 1.25534952
B41: 377248 | C41: 500 | D41: 1270 | E41: 520 | F41: 1350 | G41: 30/10, begehbar | H41: 0.5 | O41: Maschenrost 2520x800 H80, MW 33x33, LKW 30 | P41: 385036 | Q41: 900 | R41: 1363 | S41: 1,647,039.2 | T41: =S41/1000000 -> 1.6470392
B42: 377249 | C42: 600 | D42: 1270 | E42: 620 | F42: 1350 | G42: 30/10, begehbar | H42: 0.605 | O42: Maschenrost 2520x1000 H100, MW 33x33, LKW 30 | P42: 385037 | Q42: 1100 | R42: 1363 | S42: 2,059,159.62 | T42: =S42/1000000 -> 2.05915962
B43: 377250 | C43: 800 | D43: 1270 | E43: 820 | F43: 1350 | G43: 30/10, begehbar | H43: 0.801
B44: 377251 | C44: 1000 | D44: 1270 | E44: 1020 | F44: 1350 | G44: 30/10, begehbar | H44: 1.012
B45: 377252 | C45: 500 | D45: 1520 | E45: 520 | F45: 1600 | G45: 30/10, begehbar | H45: 0.593
B46: 377253 | C46: 600 | D46: 1520 | E46: 620 | F46: 1600 | G46: 30/10, begehbar | H46: 0.717 | O46: Maschenrost 1020, MW 33x33, LKW 30 (mit Beton Hinterfuellplatte)
B47: 377254 | C47: 800 | D47: 1520 | E47: 820 | F47: 1600 | G47: 30/10, begehbar | H47: 0.95 | O47: Maschenrost 1020x500 H50, MW 33x33, LKW 30 (mit Beton Hinterfuellplatte) | P47: 380963 | Q47: 700 | R47: 1230 | S47: 443,047.28 | T47: =S47/1000000 -> 0.44304728
B48: 377255 | C48: 1000 | D48: 1520 | E48: 1020 | F48: 1600 | G48: 30/10, begehbar | H48: 1.2 | O48: Maschenrost 1020x600 H60, MW 33x33, LKW 30 (mit Beton Hinterfuellplatte) | P48: 380964 | Q48: 800 | R48: 1230 | S48: 546,248.33 | T48: =S48/1000000 -> 0.54624833
B49: 385363 | C49: 500 | D49: 1800 | E49: 520 | F49: 1880 | G49: 30/10, begehbar | H49: 0.71 | O49: Maschenrost 1020x800 H80, MW 33x33, LKW 30 (mit Beton Hinterfuellplatte) | P49: 380965 | Q49: 1000 | R49: 1230 | S49: 717,302.04 | T49: =S49/1000000 -> 0.71730204
B50: 385364 | C50: 600 | D50: 1800 | E50: 620 | F50: 1880 | G50: 30/10, begehbar | H50: 0.85 | O50: Maschenrost 1020x1000 H100, MW 33x33, LKW 30 (mit Beton Hinterfuellplatte) | P50: 385445 | Q50: 1200 | R50: 1230 | S50: 888,355.45 | T50: =S50/1000000 -> 0.88835545
B51: 385365 | C51: 800 | D51: 1800 | E51: 820 | F51: 1880 | G51: 30/10, begehbar | H51: 1.15
B52: 385366 | C52: 1000 | D52: 1800 | E52: 1020 | F52: 1880 | G52: 30/10, begehbar | H52: 1.45 | O52: Maschenrost 1270, MW 33x33, LKW 30 (mit Beton Hinterfuellplatte)
B53: 377256 | C53: 500 | D53: 2050 | E53: 520 | F53: 2130 | G53: 30/10, begehbar | H53: 0.803 | O53: Maschenrost 1270x500 H50, MW 33x33, LKW 30 (mit Beton Hinterfuellplatte) | P53: 380911 | Q53: 700 | R53: 1480 | S53: 489618.43 | T53: =S53/1000000 -> 0.48961843
B54: 377257 | C54: 600 | D54: 2050 | E54: 620 | F54: 2130 | G54: 30/10, begehbar | H54: 0.971 | O54: Maschenrost 1270x600 H60, MW 33x33, LKW 30 (mit Beton Hinterfuellplatte) | P54: 380912 | Q54: 800 | R54: 1480 | S54: 587973.88 | T54: =S54/1000000 -> 0.58797388
B55: 377258 | C55: 800 | D55: 2050 | E55: 820 | F55: 2130 | G55: 30/10, begehbar | H55: 1.286 | O55: Maschenrost 1270x800 H80, MW 33x33, LKW 30 (mit Beton Hinterfuellplatte) | P55: 380913 | Q55: 1000 | R55: 1480 | S55: 785143.18 | T55: =S55/1000000 -> 0.78514318
B56: 377259 | C56: 1000 | D56: 2050 | E56: 1020 | F56: 2130 | G56: 30/10, begehbar | H56: 1.624 | O56: Maschenrost 1270x1000 H100, MW 33x33, LKW 30 (mit Beton Hinterfuellplatte) | P56: 385449 | Q56: 1200 | R56: 1480 | S56: 982965.36 | T56: =S56/1000000 -> 0.98296536
B57: 377260 | C57: 600 | D57: 2520 | E57: 620 | F57: 2600 | G57: 30/10, begehbar | H57: 1.196
B58: 377261 | C58: 800 | D58: 2520 | E58: 820 | F58: 2600 | G58: 30/10, begehbar | H58: 1.584 | O58: Maschenrost 1520, MW 33x33, LKW 30 (mit Beton Hinterfuellplatte)
B59: 377262 | C59: 1000 | D59: 2520 | E59: 1020 | F59: 2600 | G59: 30/10, begehbar | H59: 2 | O59: Maschenrost 1520x500 H50, MW 33x33, LKW 30 (mit Beton Hinterfuellplatte) | P59: 380914 | Q59: 700 | R59: 865 | S59: 587947.5 | T59: =S59/1000000 -> 0.5879475
B60: 377263 | C60: 500 | D60: 820 | E60: 520 | F60: 900 | G60: 30/10, befahrbar | H60: 0.292 | O60: Maschenrost 1520x600 H60, MW 33x33, LKW 30 (mit Beton Hinterfuellplatte) | P60: 380915 | Q60: 800 | R60: 865 | S60: 706042 | T60: =S60/1000000 -> 0.706042
B61: 377264 | C61: 600 | D61: 820 | E61: 620 | F61: 900 | G61: 30/10, befahrbar | H61: 0.353 | O61: Maschenrost 1520x800 H80, MW 33x33, LKW 30 (mit Beton Hinterfuellplatte) | P61: 380916 | Q61: 1000 | R61: 865 | S61: 942911.84 | T61: =S61/1000000 -> 0.94291184
B62: 377265 | C62: 500 | D62: 1020 | E62: 520 | F62: 1100 | G62: 30/10, befahrbar | H62: 0.364 | O62: Maschenrost 1520x1000 H100, MW 33x33, LKW 30 (mit Beton Hinterfuellplatte) | P62: 385453 | Q62: 1200 | R62: 865 | S62: 1180306.4 | T62: =S62/1000000 -> 1.1803064
B63: 377266 | C63: 600 | D63: 1020 | E63: 620 | F63: 1100 | G63: 30/10, befahrbar | H63: 0.44
B64: 377267 | C64: 800 | D64: 1020 | E64: 820 | F64: 1100 | G64: 30/10, befahrbar | H64: 0.584 | O64: Maschenrost 1800, MW 33x33, LKW 30 (mit Beton Hinterfuellplatte)
B65: 377268 | C65: 1000 | D65: 1020 | E65: 1020 | F65: 1100 | G65: 30/10, befahrbar | H65: 0.738 | O65: Maschenrost 1800x500 H50, MW 33x33, LKW 30 (mit Beton Hinterfuellplatte) | P65: 385438 | Q65: 700 | R65: 1003 | S65: 673268.72 | T65: =S65/1000000 -> 0.67326872
B66: 377269 | C66: 500 | D66: 1270 | E66: 520 | F66: 1350 | G66: 30/10, befahrbar | H66: 0.453 | O66: Maschenrost 1800x600 H60, MW 33x33, LKW 30 (mit Beton Hinterfuellplatte) | P66: 385439 | Q66: 800 | R66: 1003 | S66: 812667.48 | T66: =S66/1000000 -> 0.81266748
B67: 377270 | C67: 600 | D67: 1270 | E67: 620 | F67: 1350 | G67: 30/10, befahrbar | H67: 0.547 | O67: Maschenrost 1800x800 H80, MW 33x33, LKW 30 (mit Beton Hinterfuellplatte) | P67: 385440 | Q67: 1000 | R67: 1003 | S67: 1091602.82 | T67: =S67/1000000 -> 1.09160282
B68: 377271 | C68: 800 | D68: 1270 | E68: 820 | F68: 1350 | G68: 30/10, befahrbar | H68: 0.726 | O68: Maschenrost 1800x1000 H100, MW 33x33, LKW 30 (mit Beton Hinterfuellplatte) | P68: 385441 | Q68: 1200 | R68: 1003 | S68: 1370414.04 | T68: =S68/1000000 -> 1.37041404
B69: 377272 | C69: 1000 | D69: 1270 | E69: 1020 | F69: 1350 | G69: 30/10, befahrbar | H69: 0.917
B70: 377273 | C70: 500 | D70: 1520 | E70: 520 | F70: 1600 | G70: 30/10, befahrbar | H70: 0.538 | O70: Maschenrost 2050, MW 33x33, LKW 30 (mit Beton Hinterfuellplatte)
B71: 377274 | C71: 600 | D71: 1520 | E71: 620 | F71: 1600 | G71: 30/10, befahrbar | H71: 0.65 | O71: Maschenrost 2050x500 H50, MW 33x33, LKW 30 (mit Beton Hinterfuellplatte) | P71: 380917 | Q71: 700 | R71: 1128 | S71: 751301.02 | T71: =S71/1000000 -> 0.75130102
B72: 377275 | C72: 800 | D72: 1520 | E72: 820 | F72: 1600 | G72: 30/10, befahrbar | H72: 0.863 | O72: Maschenrost 2050x600 H60, MW 33x33, LKW 30 (mit Beton Hinterfuellplatte) | P72: 380918 | Q72: 800 | R72: 1128 | S72: 906635.9 | T72: =S72/1000000 -> 0.9066359
B73: 377276 | C73: 1000 | D73: 1520 | E73: 1020 | F73: 1600 | G73: 30/10, befahrbar | H73: 1.089 | O73: Maschenrost 2050x800 H80, MW 33x33, LKW 30 (mit Beton Hinterfuellplatte) | P73: 380919 | Q73: 1000 | R73: 1128 | S73: 1217733.02 | T73: =S73/1000000 -> 1.21773302
B74: 385367 | C74: 500 | D74: 1800 | E74: 520 | F74: 1880 | G74: 30/10, befahrbar | H74: 0.67 | O74: Maschenrost 2050x1000 H100, MW 33x33, LKW 30 (mit Beton Hinterfuellplatte) | P74: 385457 | Q74: 1200 | R74: 1128 | S74: 1529499.44 | T74: =S74/1000000 -> 1.52949944
B75: 385368 | C75: 600 | D75: 1800 | E75: 620 | F75: 1880 | G75: 30/10, befahrbar | H75: 0.82
B76: 385369 | C76: 800 | D76: 1800 | E76: 820 | F76: 1880 | G76: 30/10, befahrbar | H76: 1.1 | O76: Maschenrost 2520, MW 33x33, LKW 30 (mit Beton Hinterfuellplatte)
B77: 385370 | C77: 1000 | D77: 1800 | E77: 1020 | F77: 1880 | G77: 30/10, befahrbar | H77: 1.38 | O77: Maschenrost 2520x600 H60, MW 33x33, LKW 30 (mit Beton Hinterfuellplatte) | P77: 385038 | Q77: 800 | R77: 1363 | S77: 1,255,349.52 | T77: =S77/1000000 -> 1.25534952
B78: 377277 | C78: 500 | D78: 2050 | E78: 520 | F78: 2130 | G78: 30/10, befahrbar | H78: 0.728 | O78: Maschenrost 2520x800 H80, MW 33x33, LKW 30 (mit Beton Hinterfuellplatte) | P78: 385039 | Q78: 1000 | R78: 1363 | S78: 1,647,039.2 | T78: =S78/1000000 -> 1.6470392
B79: 377278 | C79: 600 | D79: 2050 | E79: 620 | F79: 2130 | G79: 30/10, befahrbar | H79: 0.88 | O79: Maschenrost 2520x1000 H100, MW 33x33, LKW 30 (mit Beton Hinterfuellplatte) | P79: 385040 | Q79: 1200 | R79: 1363 | S79: 2,059,159.62 | T79: =S79/1000000 -> 2.05915962
B80: 377279 | C80: 800 | D80: 2050 | E80: 820 | F80: 2130 | G80: 30/10, befahrbar | H80: 1.167
B81: 377280 | C81: 1000 | D81: 2050 | E81: 1020 | F81: 2130 | G81: 30/10, befahrbar | H81: 1.473
B82: 377281 | C82: 600 | D82: 2520 | E82: 620 | F82: 2600 | G82: 30/10, befahrbar | H82: 1.084
B83: 377282 | C83: 800 | D83: 2520 | E83: 820 | F83: 2600 | G83: 30/10, befahrbar | H83: 1.437
B84: 377283 | C84: 1000 | D84: 2520 | E84: 1020 | F84: 2600 | G84: 30/10, befahrbar | H84: 1.813
B85: 380960 | C85: 500 | D85: 1020 | E85: 600 | F85: 1230 | G85: 33/33, SLW 30, ohne HifüPla | H85: 0.443
B86: 380961 | C86: 600 | D86: 1020 | E86: 700 | F86: 1230 | G86: 33/33, SLW 30, ohne HifüPla | H86: 0.546
B87: 380962 | C87: 800 | D87: 1020 | E87: 900 | F87: 1230 | G87: 33/33, SLW 30, ohne HifüPla | H87: 0.717
B88: 385444 | C88: 1000 | D88: 1020 | E88: 1100 | F88: 1230 | G88: 33/33, SLW 30, ohne HifüPla | H88: 0.888
B89: 380902 | C89: 500 | D89: 1270 | E89: 600 | F89: 1480 | G89: 33/33, SLW 30, ohne HifüPla | H89: 0.49
B90: 380903 | C90: 600 | D90: 1270 | E90: 700 | F90: 1480 | G90: 33/33, SLW 30, ohne HifüPla | H90: 0.588
B91: 380904 | C91: 800 | D91: 1270 | E91: 900 | F91: 1480 | G91: 33/33, SLW 30, ohne HifüPla | H91: 0.785
B92: 385448 | C92: 1000 | D92: 1270 | E92: 1100 | F92: 1480 | G92: 33/33, SLW 30, ohne HifüPla | H92: 0.983
B93: 380905 | C93: 500 | D93: 1520 | E93: 600 | F93: 865 | G93: 33/33, SLW 30, ohne HifüPla | H93: 0.588 | I93: *
B94: 380906 | C94: 600 | D94: 1520 | E94: 700 | F94: 865 | G94: 33/33, SLW 30, ohne HifüPla | H94: 0.706 | I94: *
B95: 380907 | C95: 800 | D95: 1520 | E95: 900 | F95: 865 | G95: 33/33, SLW 30, ohne HifüPla | H95: 0.943 | I95: *
B96: 385452 | C96: 1000 | D96: 1520 | E96: 1100 | F96: 865 | G96: 33/33, SLW 30, ohne HifüPla | H96: 1.18 | I96: *
B97: 385434 | C97: 500 | D97: 1800 | E97: 600 | F97: 1003 | G97: 33/33, SLW 30, ohne HifüPla | H97: 0.673 | I97: *
B98: 385435 | C98: 600 | D98: 1800 | E98: 700 | F98: 1003 | G98: 33/33, SLW 30, ohne HifüPla | H98: 0.813 | I98: *
B99: 385436 | C99: 800 | D99: 1800 | E99: 900 | F99: 1003 | G99: 33/33, SLW 30, ohne HifüPla | H99: 1.092 | I99: *
B100: 385437 | C100: 1000 | D100: 1800 | E100: 1100 | F100: 1003 | G100: 33/33, SLW 30, ohne HifüPla | H100: 1.37 | I100: *
B101: 380908 | C101: 500 | D101: 2050 | E101: 600 | F101: 1128 | G101: 33/33, SLW 30, ohne HifüPla | H101: 0.751 | I101: *
B102: 380909 | C102: 600 | D102: 2050 | E102: 700 | F102: 1128 | G102: 33/33, SLW 30, ohne HifüPla | H102: 0.907 | I102: *
B103: 380910 | C103: 800 | D103: 2050 | E103: 900 | F103: 1128 | G103: 33/33, SLW 30, ohne HifüPla | H103: 1.218 | I103: *
B104: 385456 | C104: 1000 | D104: 2050 | E104: 1100 | F104: 1128 | G104: 33/33, SLW 30, ohne HifüPla | H104: 1.529 | I104: *
B105: 385035 | C105: 600 | D105: 2520 | E105: 700 | F105: 1363 | G105: 33/33, SLW 30, ohne HifüPla | H105: 1.255 | I105: *
B106: 385036 | C106: 800 | D106: 2520 | E106: 900 | F106: 1363 | G106: 33/33, SLW 30, ohne HifüPla | H106: 1.647 | I106: *
B107: 385037 | C107: 1000 | D107: 2520 | E107: 1100 | F107: 1363 | G107: 33/33, SLW 30, ohne HifüPla | H107: 2.059 | I107: *
B108: 380963 | C108: 500 | D108: 1020 | E108: 700 | F108: 1230 | G108: 33/33, SLW 30, mit HifüPla | H108: 0.443
B109: 380964 | C109: 600 | D109: 1020 | E109: 800 | F109: 1230 | G109: 33/33, SLW 30, mit HifüPla | H109: 0.546
B110: 380965 | C110: 800 | D110: 1020 | E110: 1000 | F110: 1230 | G110: 33/33, SLW 30, mit HifüPla | H110: 0.717
B111: 385445 | C111: 1000 | D111: 1020 | E111: 1200 | F111: 1230 | G111: 33/33, SLW 30, mit HifüPla | H111: 0.888
B112: 380911 | C112: 500 | D112: 1270 | E112: 700 | F112: 1480 | G112: 33/33, SLW 30, mit HifüPla | H112: 0.49
B113: 380912 | C113: 600 | D113: 1270 | E113: 800 | F113: 1480 | G113: 33/33, SLW 30, mit HifüPla | H113: 0.588
B114: 380913 | C114: 800 | D114: 1270 | E114: 1000 | F114: 1480 | G114: 33/33, SLW 30, mit HifüPla | H114: 0.785
B115: 385449 | C115: 1000 | D115: 1270 | E115: 1200 | F115: 1480 | G115: 33/33, SLW 30, mit HifüPla | H115: 0.983
B116: 380914 | C116: 500 | D116: 1520 | E116: 700 | F116: 865 | G116: 33/33, SLW 30, mit HifüPla | H116: 0.588 | I116: *
B117: 380915 | C117: 600 | D117: 1520 | E117: 800 | F117: 865 | G117: 33/33, SLW 30, mit HifüPla | H117: 0.706 | I117: *
B118: 380916 | C118: 800 | D118: 1520 | E118: 1000 | F118: 865 | G118: 33/33, SLW 30, mit HifüPla | H118: 0.943 | I118: *
B119: 385453 | C119: 1000 | D119: 1520 | E119: 1200 | F119: 865 | G119: 33/33, SLW 30, mit HifüPla | H119: 1.18 | I119: *
B120: 385438 | C120: 500 | D120: 1800 | E120: 700 | F120: 1003 | G120: 33/33, SLW 30, mit HifüPla | H120: 0.673 | I120: *
B121: 385439 | C121: 600 | D121: 1800 | E121: 800 | F121: 1003 | G121: 33/33, SLW 30, mit HifüPla | H121: 0.813 | I121: *
B122: 385440 | C122: 800 | D122: 1800 | E122: 1000 | F122: 1003 | G122: 33/33, SLW 30, mit HifüPla | H122: 1.092 | I122: *
B123: 385441 | C123: 1000 | D123: 1800 | E123: 1200 | F123: 1003 | G123: 33/33, SLW 30, mit HifüPla | H123: 1.37 | I123: *
B124: 380917 | C124: 500 | D124: 2050 | E124: 700 | F124: 1128 | G124: 33/33, SLW 30, mit HifüPla | H124: 0.751 | I124: *
B125: 380918 | C125: 600 | D125: 2050 | E125: 800 | F125: 1128 | G125: 33/33, SLW 30, mit HifüPla | H125: 0.907 | I125: *
B126: 380919 | C126: 800 | D126: 2050 | E126: 1000 | F126: 1128 | G126: 33/33, SLW 30, mit HifüPla | H126: 1.218 | I126: *
B127: 385457 | C127: 1000 | D127: 2050 | E127: 1200 | F127: 1128 | G127: 33/33, SLW 30, mit HifüPla | H127: 1.529 | I127: *
B128: 385038 | C128: 600 | D128: 2520 | E128: 800 | F128: 1363 | G128: 33/33, SLW 30, mit HifüPla | H128: 1.255 | I128: *
B129: 385039 | C129: 800 | D129: 2520 | E129: 1000 | F129: 1363 | G129: 33/33, SLW 30, mit HifüPla | H129: 1.647 | I129: *
B130: 385040 | C130: 1000 | D130: 2520 | E130: 1200 | F130: 1363 | G130: 33/33, SLW 30, mit HifüPla | H130: 2.059 | I130: *
B133: * 2 Stück nebeneinander / Lüftungsquerschnitt für beide zusammen

Sheet BLS Lüftungsquerschnitt (hidden)
B2: Berechnungshilfe Lüftungsquerschnitte ACO Betonlichtschacht | G2: Datum:2024-01-17 | H2: Release:V1.5
B4: Reduzierte Lüftungsquerschnitte bei verkürzten Rosten | Beton-Lichtschacht
B5: Disclaimer
B6: Die Berechnungshilfe „Lüftungsquerschnitte“ basiert auf dem aktuellen Stand der Wissenschaft und Technik. Die Nutzung befreit nicht von Planungs- und Sorgfaltspflichten, sondern setzt vielmehr angemessene, branchenübliche Sach- und Fachkunde voraus. Insbesondere sind objektbezogene Empfehlungen, technische Zeichnungen und Berechnungen weiterhin selbst zu verantworten sowie alle bauaufsichtlichen Voraussetzungen unter Berücksichtigung aller örtlichen Gegebenheiten, der technischen Regelwerke und des aktuellen Standes der Technik weiterhin selbst zu prüfen. Diese Aufzählung von Sorgfaltspflichten ist nicht abschließend. Die Berechnungshilfe ersetzt auch nicht die Prüfung durch Sonderfachleute. Es gelten die ACO GmbH- AGB https://www.aco.de/unternehmen/agb, unter besonderem Verweis auf § 10.
B8: gewählter Rost | C8: Artikel-Nr. | F8: ='BLS Roste'!K13 -> 385036
B10: Lichtschachtmaße
B11: Lichte Breite | C11: ='BLS Roste'!K16 -> 2520 | D11: mm
B12: Lichte Tiefe | C12: ='BLS Roste'!K15 -> 800 | D12: mm
B14: Rost - Standard
B15: Ausführung | C15: ='BLS Roste'!K17 -> 33/33, SLW 30, ohne HifüPla
B16: Breite (Außenmaß) | C16: ='BLS Roste'!K19 -> 1363 | D16: mm
B17: Tiefe (Außenmaß) | C17: ='BLS Roste'!K18 -> 900 | D17: mm
B18: Rostgröße | C18: =$C$16*$C$17*0.000001 -> 1.2267 | D18: m²
B20: nutzbarer Lüftungsquerschnitt | C20: ='BLS Roste'!K22 -> 1.647 | D20: m² | F20: (lt. Zeichnung)
B22: Rost - verkürzt
B23: Verkürzung | C23: 200 | D23: mm
B24: verkürzte Rosttiefe | C24: =$C$17-$C$23 -> 700 | D24: mm | F24: (neues Außenmaß)
B25: Abzugsfläche | C25: =$C$20/$C$12*$C$23 -> 0.41175 | D25: m²
B27: neuer Lüftungsquerschnitt | C27: =$C$20-$C$25 -> 1.23525 | D27: m²
B29: Zur Berechnung der Fläche wird die originale Tiefe zur neuen Tiefe ins Verhältnis gesetzt.
B30: Rostschema
G35: =$C$24 -> 700
H36: =$C$17 -> 900
G40: =$C$23 -> 200
C42: =$C$11 -> 2520
B44: Klicken Sie den untenstehenden Link um direkt zum gewählten Artikel zu gelangen:
B45: =HYPERLINK("https://www.aco.de/suche?tx_solr%5Bq%5D="&$F$8) -> https://www.aco.de/suche?tx_solr%5Bq%5D=385036
B47: Zu unseren Rosten für Betonlichtschächte
B49: Zu unseren Betonlichtschächten

Sheet KS-LS Roste (hidden)
B2: Berechnungshilfe Lüftungsquerschnitte ACO Kunststofflichtschacht | G2: Datum:2024-01-17 | H2: Release:V1.5
B4: Disclaimer:
B5: Die Berechnungshilfe „Lüftungsquerschnitte“ basiert auf dem aktuellen Stand der Wissenschaft und Technik. Die Nutzung befreit nicht von Planungs- und Sorgfaltspflichten, sondern setzt vielmehr angemessene, branchenübliche Sach- und Fachkunde voraus. Insbesondere sind objektbezogene Empfehlungen, technische Zeichnungen und Berechnungen weiterhin selbst zu verantworten sowie alle bauaufsichtlichen Voraussetzungen unter Berücksichtigung aller örtlichen Gegebenheiten, der technischen Regelwerke und des aktuellen Standes der Technik weiterhin selbst zu prüfen. Diese Aufzählung von Sorgfaltspflichten ist nicht abschließend. Die Berechnungshilfe ersetzt auch nicht die Prüfung durch Sonderfachleute. Es gelten die ACO GmbH- AGB https://www.aco.de/unternehmen/agb, unter besonderem Verweis auf § 10.
C7: Für Lichtschacht | E7: Abmessungen
B8: Artikel-Nr. | C8: Lichte Tiefe | D8: Lichte Breite | E8: Tiefe | F8: Breite | G8: Rost | H8: Lüftung
C9: [mm] | D9: [mm] | E9: [mm] | F9: [mm] | H9: [m²]
B10: 35572 | C10: 400 | D10: 800 | E10: 400 | F10: 840 | G10: Streckmetall | H10: 0.221
B11: 35573 | C11: 400 | D11: 1000 | E11: 400 | F11: 1040 | G11: Streckmetall | H11: 0.297 | J11: Bitte hier gewünschte Artikelnummer einkopieren:
B12: 35573* | C12: 400 | D12: 1000 | E12: 400 | F12: 1040 | G12: Streckmetall | H12: 0.286
B13: 35896 | C13: 400 | D13: 1250 | E13: 400 | F13: 1340 | G13: Streckmetall | H13: 0.392 | J13: Artikel-Nr. | K13: 10478
B14: 38767 | C14: 700 | D14: 1500 | E14: 700 | F14: 1665 | G14: Streckmetall | H14: 0.844 | J14: Lichtschacht
B15: 38770 | C15: 700 | D15: 2000 | E15: 700 | F15: 2165 | G15: Streckmetall | H15: 1.113 | J15: Lichte Tiefe | K15: =VLOOKUP($K$13,B:H,2,0) -> 400
B16: 315870 | C16: 600 | D16: 1000 | E16: 600 | F16: 1040 | G16: Streckmetall | H16: 0.462 | J16: Lichte Breite | K16: =VLOOKUP($K$13,B:H,3,0) -> 1000
B17: 315874 | C17: 600 | D17: 1250 | E17: 600 | F17: 1340 | G17: Streckmetall | H17: 0.602 | J17: Rost | K17: =VLOOKUP($K$13,B:H,6,0) -> Streckmetall vk.
B18: 375096 | C18: 400 | D18: 1000 | E18: 424 | F18: 1040 | G18: Streckmetall | H18: 0.285 | I18: 4-seit. | J18: Tiefe | K18: =VLOOKUP($K$13,B:H,4,0) -> 250
B19: 375097 | C19: 400 | D19: 1250 | E19: 424 | F19: 1340 | G19: Streckmetall | H19: 0.375 | I19: 4-seit. | J19: Breite | K19: =VLOOKUP($K$13,B:H,5,0) -> 1040
B20: 375098 | C20: 600 | D20: 1000 | E20: 625 | F20: 1040 | G20: Streckmetall | H20: 0.445 | I20: 4-seit.
B21: 375099 | C21: 600 | D21: 1250 | E21: 625 | F21: 1340 | G21: Streckmetall | H21: 0.586 | I21: 4-seit.
J22: Lüftungsquerschnitt: | K22: =VLOOKUP($K$13,B:H,7,0) -> 0.175
B25: 10476 | C25: 400 | D25: 1000 | E25: 350 | F25: 1040 | G25: Streckmetall vk. | H25: 0.256
B26: 10477 | C26: 400 | D26: 1000 | E26: 300 | F26: 1040 | G26: Streckmetall vk. | H26: 0.215
B27: 10478 | C27: 400 | D27: 1000 | E27: 250 | F27: 1040 | G27: Streckmetall vk. | H27: 0.175
B28: 10479 | C28: 400 | D28: 1250 | E28: 300 | F28: 1340 | G28: Streckmetall vk. | H28: 0.285
B29: 10480 | C29: 400 | D29: 1250 | E29: 250 | F29: 1340 | G29: Streckmetall vk. | H29: 0.232
B30: 315867 | C30: 600 | D30: 1000 | E30: 450 | F30: 1040 | G30: Streckmetall vk. | H30: 0.339
B31: 315868 | C31: 600 | D31: 1000 | E31: 500 | F31: 1040 | G31: Streckmetall vk. | H31: 0.38
B32: 315869 | C32: 600 | D32: 1000 | E32: 550 | F32: 1040 | G32: Streckmetall vk. | H32: 0.421
B33: 315871 | C33: 600 | D33: 1250 | E33: 450 | F33: 1340 | G33: Streckmetall vk. | H33: 0.442
B34: 315872 | C34: 600 | D34: 1250 | E34: 500 | F34: 1340 | G34: Streckmetall vk. | H34: 0.495
B35: 315873 | C35: 600 | D35: 1250 | E35: 550 | F35: 1340 | G35: Streckmetall vk. | H35: 0.549
B36: Divers0 | C36: 400 | D36: 1250 | E36: 350 | F36: 1340 | G36: Streckmetall vk. | H36: 0.338
B39: 35574 | C39: 400 | D39: 800 | E39: 400 | F39: 840 | G39: 30/30 | H39: 0.242
B40: 35575 | C40: 400 | D40: 1000 | E40: 400 | F40: 1040 | G40: 30/30 | H40: 0.326
B41: 35576 | C41: 400 | D41: 800 | E41: 400 | F41: 840 | G41: 30/10 | H41: 0.218
B42: 35577 | C42: 400 | D42: 1000 | E42: 400 | F42: 1040 | G42: 30/10 | H42: 0.294
B43: 35578 | C43: 400 | D43: 800 | E43: 400 | F43: 840 | G43: befahrbar | H43: 0.195
B44: 35579 | C44: 400 | D44: 1000 | E44: 400 | F44: 1040 | G44: befahrbar | H44: 0.262
B45: 35897 | C45: 400 | D45: 1250 | E45: 400 | F45: 1340 | G45: 30/30 | H45: 0.429
B46: 35898 | C46: 400 | D46: 1250 | E46: 400 | F46: 1340 | G46: 30/10 | H46: 0.387
B47: 35899 | C47: 400 | D47: 1250 | E47: 400 | F47: 1340 | G47: befahrbar | H47: 0.345
B48: 38768 | C48: 700 | D48: 1500 | E48: 700 | F48: 1665 | G48: 30/30 | H48: 0.933
B49: 38769 | C49: 700 | D49: 1500 | E49: 700 | F49: 1665 | G49: 30/10 | H49: 0.844
B50: 38771 | C50: 700 | D50: 2000 | E50: 700 | F50: 2165 | G50: 30/30 | H50: 1.23
B51: 38772 | C51: 700 | D51: 2000 | E51: 700 | F51: 2165 | G51: 30/10 | H51: 1.111
B52: 315878 | C52: 600 | D52: 1000 | E52: 600 | F52: 1040 | G52: 30/30 | H52: 0.506
B53: 315882 | C53: 600 | D53: 1250 | E53: 600 | F53: 1340 | G53: 30/30 | H53: 0.659
B54: 315999 | C54: 600 | D54: 1000 | E54: 600 | F54: 1040 | G54: 30/10 | H54: 0.459
B55: 375028 | C55: 600 | D55: 1250 | E55: 600 | F55: 1340 | G55: 30/10 | H55: 0.594
B56: 375029 | C56: 600 | D56: 1000 | E56: 600 | F56: 1040 | G56: befahrbar | H56: 0.411
B57: 375030 | C57: 600 | D57: 1250 | E57: 600 | F57: 1340 | G57: befahrbar | H57: 0.532
B58: 375102 | C58: 400 | D58: 1000 | E58: 424 | F58: 1040 | G58: 30/30 | H58: 0.306 | I58: 4-seit.
B59: 375103 | C59: 400 | D59: 1250 | E59: 424 | F59: 1340 | G59: 30/30 | H59: 0.411 | I59: 4-seit.
B60: 375104 | C60: 600 | D60: 1000 | E60: 625 | F60: 1040 | G60: 30/30 | H60: 0.49 | I60: 4-seit.
B61: 375105 | C61: 600 | D61: 1250 | E61: 625 | F61: 1340 | G61: 30/30 | H61: 0.643 | I61: 4-seit.
B62: 375108 | C62: 400 | D62: 1000 | E62: 424 | F62: 1040 | G62: 30/10 | H62: 0.283 | I62: 4-seit.
B63: 375109 | C63: 400 | D63: 1250 | E63: 424 | F63: 1340 | G63: 30/10 | H63: 0.372 | I63: 4-seit.
B64: 375110 | C64: 600 | D64: 1000 | E64: 625 | F64: 1040 | G64: 30/10 | H64: 0.444 | I64: 4-seit.
B65: 375111 | C65: 600 | D65: 1250 | E65: 625 | F65: 1340 | G65: 30/10 | H65: 0.58 | I65: 4-seit.
B66: 375112 | C66: 700 | D66: 1500 | E66: 723 | F66: 1665 | G66: 30/10 | H66: 0.848 | I66: 4-seit.
B67: 375113 | C67: 700 | D67: 2000 | E67: 723 | F67: 2165 | G67: 30/10 | H67: 1.118 | I67: 4-seit.
B70: 10740 | C70: 400 | D70: 1000 | E70: 350 | F70: 1040 | G70: 30/30 vk. | H70: 0.282
B71: 10741 | C71: 400 | D71: 1000 | E71: 300 | F71: 1040 | G71: 30/30 vk. | H71: 0.263
B72: 10742 | C72: 400 | D72: 1000 | E72: 250 | F72: 1040 | G72: 30/30 vk. | H72: 0.192
B73: 10743 | C73: 400 | D73: 1250 | E73: 300 | F73: 1340 | G73: 30/30 vk. | H73: 0.312
B74: 10744 | C74: 400 | D74: 1250 | E74: 250 | F74: 1340 | G74: 30/30 vk. | H74: 0.255
B75: 315875 | C75: 600 | D75: 1000 | E75: 450 | F75: 1040 | G75: 30/30 vk. | H75: 0.372
B76: 315876 | C76: 600 | D76: 1000 | E76: 500 | F76: 1040 | G76: 30/30 vk. | H76: 0.417
B77: 315877 | C77: 600 | D77: 1000 | E77: 550 | F77: 1040 | G77: 30/30 vk. | H77: 0.462
B78: 315879 | C78: 600 | D78: 1250 | E78: 450 | F78: 1340 | G78: 30/30 vk. | H78: 0.485
B79: 315880 | C79: 600 | D79: 1250 | E79: 500 | F79: 1340 | G79: 30/30 vk. | H79: 0.542
B80: 315881 | C80: 600 | D80: 1250 | E80: 550 | F80: 1340 | G80: 30/30 vk. | H80: 0.602
B81: 315996 | C81: 600 | D81: 1000 | E81: 450 | F81: 1040 | G81: 30/10 vk. | H81: 0.337
B82: 315997 | C82: 600 | D82: 1000 | E82: 500 | F82: 1040 | G82: 30/10 vk. | H82: 0.377
B83: 315998 | C83: 600 | D83: 1000 | E83: 550 | F83: 1040 | G83: 30/10 vk. | H83: 0.418
B84: 375031 | C84: 600 | D84: 1250 | E84: 550 | F84: 1340 | G84: 30/10 vk. | H84: 0.544
B85: 375032 | C85: 600 | D85: 1250 | E85: 500 | F85: 1340 | G85: 30/10 vk. | H85: 0.491
B86: 375033 | C86: 600 | D86: 1250 | E86: 450 | F86: 1340 | G86: 30/10 vk. | H86: 0.439
B87: 380566 | C87: 400 | D87: 1000 | E87: 350 | F87: 1040 | G87: 30/10 vk. | H87: 0.254
B88: Divers1 | C88: 400 | D88: 1250 | E88: 350 | F88: 1340 | G88: 30/30 vk. | H88: 0.372
B89: Divers2 | C89: 400 | D89: 1000 | E89: 300 | F89: 1040 | G89: 30/10 vk. | H89: 0.213
B90: Divers3 | C90: 400 | D90: 1000 | E90: 250 | F90: 1040 | G90: 30/10 vk. | H90: 0.173
B91: Divers4 | C91: 400 | D91: 1250 | E91: 350 | F91: 1340 | G91: 30/10 vk. | H91: 0.335
B92: Divers5 | C92: 400 | D92: 1250 | E92: 300 | F92: 1340 | G92: 30/10 vk. | H92: 0.282
B93: Divers6 | C93: 400 | D93: 1250 | E93: 250 | F93: 1340 | G93: 30/10 vk. | H93: 0.23

Sheet KS-LS Lüftungsquerschnitt (hidden)
B2: Berechnungshilfe Lüftungsquerschnitte ACO Betonlichtschacht | G2: Datum:2024-01-17 | H2: Release:V1.5
B4: Reduzierte Lüftungsquerschnitte bei verkürzten Rosten | Kunststoff-Lichtschacht
B5: Disclaimer
B6: Die Berechnungshilfe „Lüftungsquerschnitte“ basiert auf dem aktuellen Stand der Wissenschaft und Technik. Die Nutzung befreit nicht von Planungs- und Sorgfaltspflichten, sondern setzt vielmehr angemessene, branchenübliche Sach- und Fachkunde voraus. Insbesondere sind objektbezogene Empfehlungen, technische Zeichnungen und Berechnungen weiterhin selbst zu verantworten sowie alle bauaufsichtlichen Voraussetzungen unter Berücksichtigung aller örtlichen Gegebenheiten, der technischen Regelwerke und des aktuellen Standes der Technik weiterhin selbst zu prüfen. Diese Aufzählung von Sorgfaltspflichten ist nicht abschließend. Die Berechnungshilfe ersetzt auch nicht die Prüfung durch Sonderfachleute. Es gelten die ACO GmbH- AGB https://www.aco.de/unternehmen/agb, unter besonderem Verweis auf § 10.
B8: gewählter Rost | C8: Artikel-Nr. | F8: ='KS-LS Roste'!$K$13 -> 10478
B10: Lichtschachtmaße
B11: Lichte Breite | C11: ='KS-LS Roste'!K16 -> 1000 | D11: mm
B12: Lichte Tiefe | C12: ='KS-LS Roste'!K15 -> 400 | D12: mm
B14: Rost
B15: Ausführung | C15: =VLOOKUP($F$8,'KS-LS Roste'!B10:H94,6,0) -> Streckmetall vk.
B16: Breite (Außenmaß) | C16: =VLOOKUP($F$8,'KS-LS Roste'!B10:H94,5,0) -> 1040 | D16: mm
B17: Tiefe (Außenmaß) | C17: =VLOOKUP($F$8,'KS-LS Roste'!B10:H94,4,0) -> 250 | D17: mm
B18: Rostgröße | C18: =$C$16*$C$17*0.000001 -> 0.26 | D18: m²
B20: nutzbarer Lüftungsquerschnitt | C20: ='KS-LS Roste'!K22 -> 0.175 | D20: m² | F20: (lt. Zeichnung)
B22: Rost - verkürzt
B23: Verkürzung | C23: 400 | D23: mm
B24: verkürzte Rosttiefe | C24: =$C$17-$C$23 -> -150 | D24: mm | F24: (neues Außenmaß)
B25: Abzugsfläche | C25: =$C$20/$C$12*$C$23 -> 0.175 | D25: m²
B27: neuer Lüftungsquerschnitt | C27: =$C$20-$C$25 -> 0 | D27: m²
B29: Zur Berechnung der Fläche wird die originale Tiefe zur neuen Tiefe ins Verhältnis gesetzt.
B30: Rostschema
G35: =$C$24 -> -150
H36: =$C$17 -> 250
R37: =HYPERLINK(R45) -> 
G40: =$C$23 -> 400
C42: =$C$11 -> 1000
B48: Klicken Sie den untenstehenden Link um direkt zum gewählten Artikel zu gelangen:
B49: =HYPERLINK("https://www.aco.de/suche?tx_solr%5Bq%5D="&$F$8) -> https://www.aco.de/suche?tx_solr%5Bq%5D=10478
S50: ="" -> 
B51: Zu unseren Rosten für Kunststofflichtschächte
B53: Zu unseren Kunststofflichschächten
R56: =$R$35 -> 0
R59: =HYPERLINK(R67) -> 

Sheet Start
A1: Bitte aktivieren Sie Makros zum Start.
